Cogmind - Beta 14 @@@ ROGUE MODE // 2024.12.06 @ 16:27:52 Player: Skullbearer Result: Destroyed by 3Y-38L(z) with Zionite Laser-S Performance ------------- Evolutions (1) 500 Regions Visited (5) 1000 Robots Destroyed (21) 105 Value Destroyed (502) 502 Prototype IDs (1) 20 Alien Tech Used (0) 0 Bonus (600) 600 TOTAL SCORE: 2727 Bonus ------- Met Imprinter 300 Was Imprinted 300 Cogmind --------- Core Integrity 0/400 Matter 300/300 Energy 28/100 System Corruption 0% Temperature Cool (17) Movement Core (50) Location -7/Deep Caves Parts ------- > --- POWER (1) -------- (None) > --- PROPULSION (3) --- (None) > --- UTILITY (3) ------ Improved Targeting Computer > --- WEAPON (2) ------- (None) > --- INVENTORY (5) ---- Improved Ion Engine Wheel Light Assault Rifle Rocket Launcher GAL Module Peak State ------------ > --- POWER ------------ Ion Engine > --- PROPULSION ------- Improved Aluminum Leg Improved Aluminum Leg Improved Aluminum Leg > --- UTILITY ---------- Large Storage Unit Improved Targeting Computer Improved Shield Generator > --- WEAPON ----------- Barrage Gun Ripper > --- INVENTORY -------- Light Ion Engine Improved Ion Engine Aluminum Leg Aluminum Leg Carbon-fiber Leg Wheel Compact Wheel Flight Unit Flight Unit VTOL Module Cesium-ion Thruster Shield Generator Light Assault Rifle Rocket Launcher GAL Module [Rating: 24] Favorites ----------- Power Ion Engine Engine Ion Engine Propulsion Improved Aluminum Leg Leg Improved Aluminum Leg Flight Unit Flight Unit Utility Large Storage Unit Device Shield Generator Storage Large Storage Unit Processor Improved Targeting Computer Weapon Light Assault Rifle Energy Gun Spread Laser Ballistic Gun Light Assault Rifle Slashing Weapon Ripper Build | -11 -10 -9 -9 -7 -7 ------- Run | Yrd Mat Mat Min Zio Dee Slots Evolved 2 | . . 2 . . . Power . | . . . . . . Propulsion 1 | . . 1 . . . Utility 1 | . . 1 . . . Weapon . | . . . . . . Parts Attached 47 | 6 14 21 1 4 1 Power 6 | 1 2 3 . . . Engine 6 | 1 2 3 . . . Core . | . . . . . . Reactor . | . . . . . . Propulsion 18 | 2 4 11 . . 1 Treads . | . . . . . . Leg 16 | 2 3 11 . . . Wheel . | . . . . . . Hover . | . . . . . . Flight 2 | . 1 . . . 1 Utility 9 | 1 4 2 . 2 . Device 3 | . . 1 . 2 . Storage 5 | 1 3 1 . . . Processor 1 | . 1 . . . . Hackware . | . . . . . . Protection . | . . . . . . Artifact . | . . . . . . Weapon 14 | 2 4 5 1 2 . Energy Gun 4 | . 1 3 . . . Energy Cannon . | . . . . . . Ballistic Gun 8 | 2 2 2 1 1 . Ballistic Cannon . | . . . . . . Launcher . | . . . . . . Special Weapon . | . . . . . . Impact Weapon . | . . . . . . Slashing Weapon 2 | . 1 . . 1 . Piercing Weapon . | . . . . . . Special Melee Weapon . | . . . . . . Unidentified Prototypes . | . . . . . . Parts Lost 10 | . 1 3 . . 6 Power 1 | . . . . . 1 Propulsion 3 | . . . . . 3 Utility 3 | . 1 1 . . 1 Weapon 3 | . . 2 . . 1 Highest Loss Streak 6 | . 1 1 . . 6 To Critical Strikes . | . . . . . . Average Slot Usage (%) 93 | . 94 90 88 97 94 Engine 11 | . 14 11 11 11 10 Leg 31 | . 26 33 33 33 30 Device 4 | . . 2 . 8 9 Storage 12 | . 20 11 11 11 10 Processor 9 | . 4 11 11 11 11 Energy Gun 4 | . 1 9 11 1 . Ballistic Gun 11 | . 16 10 11 10 10 Slashing Weapon 6 | . 9 1 . 9 11 Peak Build Rating 24 | 6 8 14 15 23 24 Average Rating 15 | 4 6 11 14 20 22 On Entrance 11 | . 6 8 14 15 23 Naked Turns . | . . . . . . Heaviest Build 35 | 13 32 32 29 35 35 Greatest Support 39 | 20 20 39 39 39 39 Greatest Overweight (x) 1 | . 1 1 . . 1 Average Overweight (x) . | . . . . . . Largest Inventory Capacity 15 | 8 15 15 15 15 15 Average Capacity 14 | 6 10 15 15 15 14 Most Carried 15 | 4 8 15 15 15 15 Average Carried 13 | 2 7 13 14 14 14 Final Capacity 15 | 8 15 15 15 15 5 Final Carried 15 | 4 8 15 15 15 5 Class Distribution -------------------- 81% | Mutant 18% | Scavenger-Mutant Dominant Class ---------------- Mutant | -10/Materials Scavenger-Mutant | -9/Materials Mutant | -9/Mines Mutant | -7/Zion Mutant | -7/Deep Caves Resources | -11 -10 -9 -9 -7 -7 ----------- Run | Yrd Mat Mat Min Zio Dee Matter Collected 768 | 214 136 352 26 40 . Remotely . | . . . . . . Salvage Created 612 | . 136 423 53 . . Parts 49 | . 9 31 9 . . Haulers Intercepted . | . . . . . . Recyclers Shooed . | . . . . . . Parts Field Recycled . | . . . . . . Retrieved Matter . | . . . . . . Parts Self-Destructed 3 | . . . . 3 . Prevented . | . . . . . . Kills | -11 -10 -9 -9 -7 -7 ------- Run | Yrd Mat Mat Min Zio Dee Combat Hostiles Destroyed 20 | . 5 11 4 . . Guns 20 | . 5 11 4 . . Classes Destroyed 4 | . 2 2 . . . Worker 1 | . . 1 . . . Swarmer 10 | . 3 3 4 . . Grunt 8 | . 2 6 . . . Sentry 2 | . . 2 . . . Best Kill Streak 4 | . 3 4 4 . . Combat Bots Only 4 | . 3 4 4 . . Max Kills in Single Turn 2 | . 2 1 1 . . Gunslinging 1 | . 1 . . . . Exploded . | . . . . . . Melee . | . . . . . . Uniques/NPCs Destroyed . | . . . . . . Combat | -11 -10 -9 -9 -7 -7 -------- Run | Yrd Mat Mat Min Zio Dee Hostile Shots Fired 208 | . 37 86 16 . 69 Missed 78 | . 7 31 6 . 34 Damage Taken 2012 | . 370 548 87 . 1007 Core 530 | . 112 56 19 . 343 Absorbed by Shields 197 | . . 127 . . 70 Core Remaining (%) 77 | 100 55 . . . . Volleys Fired 78 | . 17 55 6 . . Largest 2 | . 2 2 2 . . Hottest 85 | . 40 85 85 . . Shots Fired 116 | . 19 85 12 . . Gun 116 | . 19 85 12 . . Cannon . | . . . . . . Launcher . | . . . . . . Special . | . . . . . . Kinetic 67 | . 19 42 6 . . Thermal 49 | . . 43 6 . . Explosive . | . . . . . . Electromagnetic . | . . . . . . Robot Hit Streak 14 | . 6 14 4 . . Robot Miss Streak 7 | . 1 3 7 . . Penetration Max . | . . . . . . Secondary Targets 4 | . 2 . 2 . . Max Gunslinging Chain 1 | . 1 . 1 . . Shots Hit Robots 87 | . 15 63 9 . . Core Hits 41 | . 7 26 8 . . Critical Kills . | . . . . . . Critical Parts Destroyed 1 | . . . 1 . . Critical Strikes 2 | . . 1 1 . . Burn 1 | . . 1 . . . Destroy 1 | . . . 1 . . Melee Attacks 3 | . 2 . . 1 . Impact . | . . . . . . Slashing 3 | . 2 . . 1 . Piercing . | . . . . . . Sneak Attacks . | . . . . . . Combat Hostiles . | . . . . . . Follow-up Attacks . | . . . . . . Damage Inflicted 973 | . 195 691 87 . . Guns 973 | . 195 691 87 . . Cannons . | . . . . . . Explosions . | . . . . . . Melee . | . . . . . . Ramming . | . . . . . . Kinetic 547 | . 195 320 32 . . Thermal 426 | . . 371 55 . . Explosive . | . . . . . . Electromagnetic . | . . . . . . Impact . | . . . . . . Slashing . | . . . . . . Piercing . | . . . . . . Highest Corruption 2 | . 2 . . . . Average Corruption 2 | . 2 . . . . Corruption Purged . | . . . . . . Corruption Blocked . | . . . . . . Overload Shots . | . . . . . . Overflow Damage . | . . . . . . Projectiles . | . . . . . . Explosions . | . . . . . . Melee . | . . . . . . Knockbacks . | . . . . . . Impact . | . . . . . . Kinetic . | . . . . . . Secondary . | . . . . . . Self-Inflicted Damage . | . . . . . . Shots . | . . . . . . Rammed . | . . . . . . Targets Rammed . | . . . . . . Kicked . | . . . . . . Crushed . | . . . . . . Highest Temperature 136 | . 30 94 136 . 10 Average Temperature 25 | . 12 19 61 . 6 Received Heat Transfer 778 | . 252 235 . . 291 Siege Activations . | . . . . . . Robots Corrupted . | . . . . . . Combat Hostiles . | . . . . . . Parts Fried . | . . . . . . Impact Corruptions . | . . . . . . Robots Melted . | . . . . . . Combat Hostiles . | . . . . . . Parts Melted . | . . . . . . Heat Transferred 981 | . . 911 70 . . Parts Sabotaged . | . . . . . . Parts Stolen . | . . . . . . Parts Stripped . | . . . . . . Power Chain Reactions . | . . . . . . Alert | -11 -10 -9 -9 -7 -7 ------- Run | Yrd Mat Mat Min Zio Dee Peak Influence 255 | . 125 255 105 . . Initial . | . . . . . . Average 73 | . 41 86 102 . . Maximum Alert Level 1 | . . 1 . . . Low Security (%) 93 | 100 100 85 100 . . Level 1 6 | . . 14 . . . Level 2 . | . . . . . . Level 3 . | . . . . . . Level 4 . | . . . . . . Level 5 . | . . . . . . High Security . | . . . . . . Max Security . | . . . . . . Squads Dispatched 2 | . . 2 . . . Investigation . | . . . . . . Extermination . | . . . . . . Reinforcement 2 | . . 2 . . . Assault . | . . . . . . Garrison . | . . . . . . Intercept . | . . . . . . Searches Triggered . | . . . . . . Construction Impeded . | . . . . . . Haulers Reinforced . | . . . . . . Active Scanning Responses . | . . . . . . Cargo Convoy Interrupts . | . . . . . . Stealth | -11 -10 -9 -9 -7 -7 --------- Run | Yrd Mat Mat Min Zio Dee Distress Signals 3 | . 1 2 . . . Communications Jammed . | . . . . . . Distress Signals . | . . . . . . Times Spotted 35 | . 9 15 3 . 8 Peak Tracking Total 9 | . 3 3 3 . 9 Tactical Retreats 1 | . . 1 . . . Traps | -11 -10 -9 -9 -7 -7 ------- Run | Yrd Mat Mat Min Zio Dee Traps Triggered 1 | . 1 . . . . Indirectly . | . . . . . . Trap Hack Attempts . | . . . . . . Triggered . | . . . . . . Disarmed . | . . . . . . Reprogrammed . | . . . . . . Reused . | . . . . . . Traps Extracted . | . . . . . . Installed . | . . . . . . Triggered . | . . . . . . Machines | -11 -10 -9 -9 -7 -7 ---------- Run | Yrd Mat Mat Min Zio Dee Machines Disabled . | . . . . . . Max in Single Turn . | . . . . . . Machines Repaired . | . . . . . . Machines Dismantled . | . . . . . . Machines Sabotaged . | . . . . . . Overloaded Fab Kills . | . . . . . . Hacking | -11 -10 -9 -9 -7 -7 --------- Run | Yrd Mat Mat Min Zio Dee Machines Accessed . | . . . . . . Terminals . | . . . . . . Fabricators . | . . . . . . Repair Stations . | . . . . . . Recycling Units . | . . . . . . Scanalyzers . | . . . . . . Garrison Access . | . . . . . . Total Hacks . | . . . . . . Successful . | . . . . . . Failed . | . . . . . . Catastrophic . | . . . . . . Database Lockouts . | . . . . . . Manual 9 | . . . . 9 . Terminals . | . . . . . . Fabricators . | . . . . . . Repair Stations . | . . . . . . Recycling Units . | . . . . . . Scanalyzers . | . . . . . . Garrison Access . | . . . . . . Terminal Hacks . | . . . . . . Fabricator Hacks . | . . . . . . Repair Station Hacks . | . . . . . . Recycling Unit Hacks . | . . . . . . Scanalyzer . | . . . . . . Garrison Access Hacks . | . . . . . . Unauthorized Hacks . | . . . . . . Terminals . | . . . . . . Fabricators . | . . . . . . Repair Stations . | . . . . . . Recycling Units . | . . . . . . Scanalyzers . | . . . . . . Garrison Access . | . . . . . . Data Cores Recovered . | . . . . . . Used . | . . . . . . Hacking Detections . | . . . . . . Full Trace Events . | . . . . . . Feedback Events . | . . . . . . Feedback Blocked . | . . . . . . Robot Schematics Acquired 3 | . . . . 3 . Robots Built . | . . . . . . Authchips . | . . . . . . Time . | . . . . . . Total Robot Build Rating . | . . . . . . Part Schematics Acquired 14 | . . . . 14 . Parts Built . | . . . . . . Authchips . | . . . . . . Time . | . . . . . . Total Part Build Rating . | . . . . . . Parts Repaired . | . . . . . . Time . | . . . . . . Parts Recycled . | . . . . . . Recycled Matter . | . . . . . . Retrieved Matter . | . . . . . . Retrieved Components . | . . . . . . Parts Scanalyzed . | . . . . . . Part Schematics Acquired . | . . . . . . Parts Damaged . | . . . . . . Bothacking | -11 -10 -9 -9 -7 -7 ------------ Run | Yrd Mat Mat Min Zio Dee Used RIF Installer . | . . . . . . Robots Hacked . | . . . . . . Non-combat . | . . . . . . Combat . | . . . . . . Robot Hacks Applied . | . . . . . . Relay Couplers Released . | . . . . . . Fabnet Peak Effective % . | . . . . . . Robots Rewired . | . . . . . . Allies Hacked . | . . . . . . Hacks Repelled . | . . . . . . Allies | -11 -10 -9 -9 -7 -7 -------- Run | Yrd Mat Mat Min Zio Dee Total Allies 4 | . . . . 4 . Largest Group 4 | . . . . 4 . Highest-Rated Group 150 | . . . . 150 . Highest-Rated Ally 39 | . . . . 39 . Total Orders . | . . . . . . Ally Attacks . | . . . . . . Total Damage . | . . . . . . Kills . | . . . . . . Allies Corrupted . | . . . . . . Allies Melted . | . . . . . . Intel | -11 -10 -9 -9 -7 -7 ------- Run | Yrd Mat Mat Min Zio Dee Robot Analysis Total . | . . . . . . Derelict Logs Recovered 1 | . . . 1 . . Drone Launches . | . . . . . . Drone Recoveries . | . . . . . . Exploration | -11 -10 -9 -9 -7 -7 ------------- Run | Yrd Mat Mat Min Zio Dee Turns Passed 3503 | 80 527 951 384 1372 189 Spaces Moved 2463 | 59 355 505 303 1085 156 Core 15 | 5 . . . . 10 Treads . | . . . . . . Legs 2395 | 54 302 505 303 1085 146 Wheels . | . . . . . . Hover . | . . . . . . Flight 53 | . 53 . . . . Fastest Speed 40 | 50 40 120 120 120 50 Average Speed 127 | 114 128 152 120 120 117 Slowest Speed 190 | 120 190 190 120 120 190 Overloaded Moves . | . . . . . . Propulsion Burnouts . | . . . . . . Robots Hopped . | . . . . . . Cave-ins Triggered . | . . . . . . Exploration Rate (%) 39 | 4 28 25 62 86 30 Regions Visited 5 Branch Regions 3 Pre-discovered Areas . | . . . . . . Known Exits Taken . | . . . . . . Unknown Exits Taken 5 | 1 1 1 1 1 . Scrap Searched 3 | . . . 1 2 . Spaces Dug . | . . . . . . Terrain Destroyed . | . . . . . . Melee . | . . . . . . Projectile . | . . . . . . AOE . | . . . . . . Terrain Rammed . | . . . . . . Walls Destroyed . | . . . . . . Machines Disabled . | . . . . . . Actions | -11 -10 -9 -9 -7 -7 --------- Run | Yrd Mat Mat Min Zio Dee Total 2712 | 69 404 607 314 1154 164 Wait 74 | . . 14 . 60 . Move 2458 | 58 354 504 302 1084 156 Hop . | . . . . . . Pick Up 22 | 5 7 4 2 2 2 Fast Attach 14 | 5 4 4 . 1 . Attach 7 | 1 3 1 . 1 1 Detach 3 | . 3 . . . . Swap 26 | . 7 16 1 2 . Drop 27 | . 7 9 3 3 5 Fire 78 | . 17 55 6 . . Melee 3 | . 2 . . 1 . Ram . | . . . . . . Kick . | . . . . . . Crush . | . . . . . . Escape Stasis . | . . . . . . Rewire . | . . . . . . Trap . | . . . . . . Miscellaneous . | . . . . . . Route ------- -11/Scrapyard -10/Materials (discovered 2 exits: [*Mat] / [*Min]) -9/Materials -9/Mines (discovered 2 exits: [*Mat] / *Zio) -7/Zion -7/Deep Caves History --------- Turn | Location | Event 5 | -11/Scrapyard | Discovered new exit (range 16) 81 | -11/Scrapyard | Entered Materials 309 | -10/Materials | Build established: Mutant 342 | -10/Materials | Discovered new exit (range 16) 560 | -10/Materials | Discovered new exit (range 8) 608 | -10/Materials | Entered another Materials area 608 | -9/Materials | Evolved 2 slots: Propulsion x1, Utility x1 1067 | -9/Materials | Build established: Scavenger-Mutant 1466 | -9/Materials | Discovered new exit (range 15) 1559 | -9/Materials | Entered Mines 1722 | -9/Mines | Build established: Mutant 1851 | -9/Mines | A Derelict revealed a hidden shortcut to a safe place 1877 | -9/Mines | Learned location of 1 exit from Materials 1889 | -9/Mines | Discovered new exit (range 8) 1943 | -9/Mines | Entered Zion 1983 | -7/Zion | Acquired unknown access codes intercepted by a Zionite 2291 | -7/Zion | Found GAL Module 2976 | -7/Zion | Met Imprinter 3004 | -7/Zion | Imprinted 3006 | -7/Zion | Declared Zion's savior 3280 | -7/Zion | Opened final containment barrier to the Deep Caves 3303 | -7/Zion | Discovered new exit (range 3) 3303 | -7/Zion | Saw the warning signs outside the Deep Caves entrance 3315 | -7/Zion | Entered Deep Caves 3315 | -7/Deep Caves | Accompanied by 4 allies 3464 | -7/Deep Caves | Attacked by Z-Imprinter 3488 | -7/Deep Caves | Z-Facility disabled 3498 | -7/Deep Caves | Core integrity fell below 50% 3504 | -7/Deep Caves | Core integrity fell below 20% 3504 | -7/Deep Caves | Destroyed by 3Y-38L(z) with Zionite Laser-S Last Messages --------------- SG-2TZ(M) slips into the shadows. T2-GPZ(M) slips into the shadows. Dropped Flight Unit. Acquired Cesium-ion Thruster. Dropped Aluminum Leg. Acquired Carbon-fiber Leg. NEW_ZION: Z-Facility proximity alert. Z-Imprinter: GET AWAY FROM HERE! I've worked too hard for our future just to have you ruin everything! Imp. Aluminum Leg destroyed. Imp. Shield Generator destroyed. Z-Facility disabled. Ion Engine destroyed. Imp. Aluminum Leg destroyed. VTOL Module destroyed. Dropped Barrage Gun. Dropped Imp. Aluminum Leg. Dropped Lrg. Storage Unit. Ripper destroyed. Map ----- +----------------------------------------------------+ | | | | | | | ?????????????????????????????????????????????????? | | ????????????????????#???????###############??????? | | ????????????????????# ???###" ##?????? | | ????????????????????# ??## #????## | | ????????????######??# ?## ###### | | ??????????### # ### ## ## # | | ??????????# "# | | ????????? | | ????????? | | ????????? | | ????????? | | ????????? zzI""""" """""" | | ????????? ====""""""""""""" | | ????????? !![=""""""""""""" | | ????????? *== """""""""""" | | ????????? """"""""? | | ????????? """""????""" | | ????????? " """""????""" | | ????????? """""?????"" | | ????????? "" """"?????"" | | ????????? """""""?????? | | ????????? """"""????? | | ????????? @""""""??????? | | ????????? """"""????????? | | ?????????? """""????????????? | | ?????????? """""??????????????? | | ??????????? """""??????????????????? | | ??????????? """"???????????????????? | | ??????????? """????????????????????? | | ???????????? ""?????????????????????? | | ???????????? ""?????????????????????? | | ????????????? ??????????????????????? | | ????????????? ??????????????????????? | | ?????????????? ??????????????????????? | | ???????????????? ??????????????????????? | | ?????????????????? ??????????????????????? | | ????????????????????? ??????????????????????? | | ??????????????????????? ???????????????????????? | | ?????????????????????????????????????????????????? | | ?????????????????????????????????????????????????? | | ?????????????????????????????????????????????????? | | ?????????????????????????????????????????????????? | | ?????????????????????????????????????????????????? | | ?????????????????????????????????????????????????? | | ?????????????????????????????????????????????????? | | ?????????????????????????????????????????????????? | | ?????????????????????????????????????????????????? | +----------------------------------------------------+ Best States ------------- Heat Dissipation 28 Energy Generation 12 Energy Capacity 265 Matter Stores 300 Matter Capacity 450 Sight Range 16 Terrain Scan Density 10 Evasion (%) 62 Targeting Accuracy 6 Item Schematics ----------------- System Restoration Module | -7/Zion | Archive Proton Cannon | -7/Zion | Archive Remote Datajack | -7/Zion | Archive Lgt. Angular Momentum Engine | -7/Zion | Archive Hvy. Flak Cannon | -7/Zion | Archive Weapon Cycler | -7/Zion | Archive Launcher Guidance Computer | -7/Zion | Archive Adv. Shield Generator | -7/Zion | Archive Force Field | -7/Zion | Archive Xenon Bombardment Thruster | -7/Zion | Archive Imp. Actuator Array | -7/Zion | Archive Hvy. Laser | -7/Zion | Archive Imp. Dynamic Insulation System | -7/Zion | Archive Lrn. Phase Cannon | -7/Zion | Archive Robot Schematics ------------------ B-36 Bruiser | -7/Zion | Archive B-48 Gladiator | -7/Zion | Archive M-14 Sweeper | -7/Zion | Archive Fabricated ------------ Nothing Alien Tech Used ----------------- None Achievements -------------- None Challenges ------------ None Game ------ Seed GuidedZioniteNetwork Manual? 0 Play Time 00:28:39 Cumulative 13.0 hours Start 2024.12.06 @ 14:58:22 End 2024.12.06 @ 16:27:52 Sessions 1 Manual Loads 0 Difficulty Rogue Special Mode None Game No. 25 Rogue 25 Adventurer 0 Explorer 0 Win Type - Total 0 Types 0/0/0/0/0/0/0/0/0 Lore% 12 Gallery% 17 Achievement% 15 Wizard Run 0 Options --------- Layout 1 ASCII 0 Keyboard 0 Movement Arrows Keybinds 0 Fullscreen 1 Font 24/Smallcaps Map View 50x35 Zoom Use 0% Tactical HUD 0 Map Filters NONE Filters NONE Steam 1 RUN: ec539119-04da-4232-b389-4e6d4e8a32b1